[Event "HUN-chT 2017-18"]
[Site "Budapest"]
[Date "2018.05.05"]
[Round "8"]
[White "Papp, Petra"]
[Black "Szalai, Kornel"]
[Result "1/2-1/2"]
[ECO "C18"]
[WhiteElo "2333"]
[BlackElo "2393"]
[Annotator "ChessBase"]
[PlyCount "138"]
[EventDate "2018.??.??"]
[EventType "team-tourn"]
[EventCountry "HUN"]
[SourceTitle "playchess.com"]
[Source "ChessBase"]
[SourceQuality "1"]
[TimeControl "40/5400+30:1800+30"]

1. e4 {[%emt 0:00:03]} e6 {[%emt 0:00:44]} 2. d4 {[%emt 0:00:27]} d5 {[%emt 0:00:08]} 3. Nc3 {[%emt 0:00:18]} Bb4 {[%emt 0:00:33]} 4. e5 {[%emt 0:01:29]} c5 {[%emt 0:10:26]} 5. a3 {[%emt 0:00:18]} Bxc3+ {[%emt 0:00:07]} 6. bxc3 {[%emt 0:00:15]} Qa5 {[%emt 0:00:04]} 7. Bd2 {[%emt 0:00:44]} Qa4 {[%emt 0:01:00]} 8. Qg4 {[%emt 0:02:07]} Kf8 {[%emt 0:00:50]} 9. Nf3 {[%emt 0:00:55]} Ne7 {[%emt 0:00:43]} 10. h3 {[%emt 0:11:38]} Qxc2 {[%emt 0:10:21]} 11. dxc5 {[%emt 0:19:21]} Nd7 {[%emt 0:05:06]} 12. Be2 {[%emt 0:17:03]} Nc6 {[%emt 0:23:31]} 13. Rc1 {[%emt 0:12:16]} Qe4 {[%emt 0:07:49]} 14. Ng5 {[%emt 0:06:06]} Qg6 {[%emt 0:10:57]} 15. f4 {[%emt 0:04:37]} Nxc5 {[%emt 0:04:31]} 16. O-O {[%emt 0:01:43]} h6 {[%emt 0:06:12]} 17. Nf3 {[%emt 0:05:25]} Qxg4 {[%emt 0:02:14]} 18. hxg4 {[%emt 0:00:02]} Nb3 {[%emt 0:01:02]} 19. Rcd1 {[%emt 0:00:14]} Nxd2 {[%emt 0:00:27]} 20. Rxd2 {[%emt 0:00:07]} Ke7 {[%emt 0:00:14]} 21. Nd4 {[%emt 0:02:36]} Bd7 {[%emt 0:01:19]} 22. Nxc6+ {[%emt 0:01:21]} Bxc6 {[%emt 0:01:02]} 23. f5 {[%emt 0:00:20]} Rac8 {[%emt 0:02:36]} 24. Rd4 {[%emt 0:03:10]} Bd7 {[%emt 0:05:13]} 25. c4 {[%emt 0:01:37]} Rc5 {[%emt 0:01:05]} 26. cxd5 {[%emt 0:02:36]} Rxd5 {[%emt 0:00:11]} 27. Rxd5 {[%emt 0:02:01]} exd5 {[%emt 0:00:05]} 28. Rd1 {[%emt 0:00:55]} Bc6 {[%emt 0:02:20]} 29. Kf2 {[%emt 0:00:30]} Rd8 {[%emt 0:01:05]} 30. Rd4 {[%emt 0:00:34]} Kd7 {[%emt 0:00:40]} 31. Ke3 {[%emt 0:01:05]} Re8 {[%emt 0:00:11]} 32. Kf4 {[%emt 0:01:42]} g5+ {[%emt 0:00:04]} 33. fxg6 {[%emt 0:00:22]} fxg6 {[%emt 0:00:04]} 34. Bd3 {[%emt 0:00:05]} Rf8+ {[%emt 0:01:06]} 35. Ke3 {[%emt 0:01:38]} Ke6 {[%emt 0:00:16]} 36. g5 {[%emt 0:00:59]} hxg5 {[%emt 0:01:35]} 37. Rg4 {[%emt 0:00:02]} Kxe5 {[%emt 0:01:14]} 38. Rxg5+ {[%emt 0:00:03]} Kd6 {[%emt 0:00:11]} 39. Rxg6+ {[%emt 0:01:25]} Kc5 {[%emt 0:00:07]} 40. g4 {[%emt 0:00:00]} d4+ {[%emt 0:02:18]} 41. Ke2 {[%emt 0:02:49]} Re8+ {[%emt 0:06:03]} 42. Kd2 {[%emt 0:02:33]} Re3 {[%emt 0:13:00]} 43. Rg5+ {[%emt 0:08:35]} Kd6 {[%emt 0:00:42]} 44. Rg8 {[%emt 0:03:59]} Rg3 {[%emt 0:04:59]} 45. g5 {[%emt 0:00:46]} Rg2+ {[%emt 0:00:38]} 46. Kc1 {[%emt 0:01:10]} Ke7 {[%emt 0:05:48]} 47. g6 {[%emt 0:01:28]} Rg5 {[%emt 0:00:25]} 48. Rg7+ {[%emt 0:02:07]} Kd6 {[%emt 0:00:57]} 49. Rh7 {[%emt 0:03:57]} Bd5 {[%emt 0:00:12]} 50. Rh4 {[%emt 0:03:05]} Kc5 {[%emt 0:00:05]} 51. Rh8 {[%emt 0:00:32]} a6 {[%emt 0:00:33]} 52. Rc8+ {[%emt 0:00:36]} Kd6 {[%emt 0:00:34]} 53. Rd8+ {[%emt 0:00:26]} Kc6 {[%emt 0:00:07]} 54. Rc8+ {[%emt 0:01:01]} Kd7 {[%emt 0:00:51]} 55. Rf8 {[%emt 0:00:24]} Kd6 {[%emt 0:00:29]} 56. Rd8+ {[%emt 0:00:32]} Kc5 {[%emt 0:00:06]} 57. Rc8+ {[%emt 0:00:11]} Bc6 {[%emt 0:00:04]} 58. Rg8 {[%emt 0:01:41]} Bb5 {[%emt 0:00:19]} 59. g7 {[%emt 0:04:03]} Bc6 {[%emt 0:00:35]} 60. Kd2 {[%emt 0:00:55]} Bd5 {[%emt 0:01:11]} 61. Rc8+ {[%emt 0:00:16]} Kd6 {[%emt 0:01:13]} 62. Be4 {[%emt 0:01:13]} Be6 {[%emt 0:00:38]} 63. Rd8+ {[%emt 0:00:12]} Ke5 {[%emt 0:00:43]} 64. Bxb7 {[%emt 0:00:33]} Rxg7 {[%emt 0:00:24]} 65. Bxa6 {[%emt 0:00:25]} Ra7 {[%emt 0:00:03]} 66. Bd3 {[%emt 0:00:27]} Rxa3 {[%emt 0:00:13]} 67. Re8 {[%emt 0:00:25]} Ra2+ {[%emt 0:00:22]} 68. Ke1 {[%emt 0:00:33]} Ra3 {[%emt 0:00:04]} 69. Kd2 {[%emt 0:00:12]} Ra2+ {[%emt 0:00:08]} 1/2-1/2

[Event "HUN-chT 2017-18"]
[Site "Budapest"]
[Date "2018.05.05"]
[Round "8"]
[White "Kecskemeti, Arpad"]
[Black "Balint, Vilmos"]
[Result "0-1"]
[ECO "C16"]
[WhiteElo "2308"]
[BlackElo "2237"]
[Annotator "ChessBase"]
[PlyCount "130"]
[EventDate "2018.??.??"]
[EventType "team-tourn"]
[EventCountry "HUN"]
[SourceTitle "playchess.com"]
[Source "ChessBase"]
[SourceQuality "1"]
[TimeControl "40/5400+30:1800+30"]

1. e4 {[%emt 0:00:03]} e6 {[%emt 0:00:45]} 2. d4 {[%emt 0:00:18]} d5 {[%emt 0:00:36]} 3. Nc3 {[%emt 0:01:01]} Bb4 {[%emt 0:00:21]} 4. e5 {[%emt 0:00:59]} Ne7 {[%emt 0:00:07]} 5. a3 {[%emt 0:06:02]} Bxc3+ {[%emt 0:00:20]} 6. bxc3 {[%emt 0:00:06]} b6 {[%emt 0:00:05]} 7. Qg4 {[%emt 0:02:17]} Ng6 {[%emt 0:00:06]} 8. h4 {[%emt 0:04:01]} h5 {[%emt 0:00:22]} 9. Qg3 {[%emt 0:01:23]} Ba6 {[%emt 0:00:42]} 10. Nf3 {[%emt 0:07:21]} Bxf1 {[%emt 0:01:26]} 11. Kxf1 {[%emt 0:01:45]} Nc6 {[%emt 0:08:31]} 12. Ng5 {[%emt 0:16:28]} Qd7 {[%emt 0:06:52]} 13. a4 {[%emt 0:09:03]} Na5 {[%emt 0:05:01]} 14. Qd3 {[%emt 0:06:33]} Nc4 {[%emt 0:01:37]} 15. g3 {[%emt 0:01:22]} Ne7 {[%emt 0:01:46]} 16. Kg2 {[%emt 0:04:15]} f6 {[%emt 0:09:24]} 17. exf6 {[%emt 0:01:25]} gxf6 {[%emt 0:00:05]} 18. Ne4 {[%emt 0:00:23]} dxe4 {[%emt 0:23:49]} 19. Qxc4 {[%emt 0:00:15]} Qd5 {[%emt 0:01:00]} 20. Qe2 {[%emt 0:06:51]} O-O-O {[%emt 0:03:49]} 21. Re1 {[%emt 0:06:21]} e3+ {[%emt 0:03:08]} 22. f3 {[%emt 0:03:35]} Rhg8 {[%emt 0:04:49]} 23. Bxe3 {[%emt 0:03:55]} Nf5 {[%emt 0:00:39]} 24. Bf4 {[%emt 0:00:27]} e5 {[%emt 0:09:34]} 25. dxe5 {[%emt 0:03:06]} Nxh4+ {[%emt 0:00:37]} 26. Kf2 {[%emt 0:01:21]} Ng6 {[%emt 0:05:15]} 27. Rad1 {[%emt 0:07:07]} Qc5+ {[%emt 0:02:58]} 28. Qe3 {[%emt 0:01:44]} Qxe3+ {[%emt 0:03:48]} 29. Bxe3 {[%emt 0:00:24]} Rxd1 {[%emt 0:02:07]} 30. Rxd1 {[%emt 0:00:06]} Nxe5 {[%emt 0:00:03]} 31. Rh1 {[%emt 0:01:55]} Rh8 {[%emt 0:01:34]} 32. g4 {[%emt 0:00:30]} h4 {[%emt 0:00:22]} 33. g5 {[%emt 0:00:46]} Rh5 {[%emt 0:03:30]} 34. gxf6 {[%emt 0:02:10]} Rf5 {[%emt 0:00:07]} 35. f4 {[%emt 0:00:24]} Ng6 {[%emt 0:00:30]} 36. Kf3 {[%emt 0:00:56]} Rxf6 {[%emt 0:00:04]} 37. Kg4 {[%emt 0:00:36]} Rc6 {[%emt 0:01:54]} 38. Bd4 {[%emt 0:00:20]} Rc4 {[%emt 0:00:32]} 39. f5 {[%emt 0:01:07]} Ne5+ {[%emt 0:00:43]} 40. Kg5 {[%emt 0:00:00]} Nf3+ {[%emt 0:00:24]} 41. Kg6 {[%emt 0:03:03]} c5 {[%emt 0:02:59]} 42. Rh3 {[%emt 0:05:32]} Nxd4 {[%emt 0:10:36]} 43. cxd4 {[%emt 0:00:11]} Rxd4 {[%emt 0:00:07]} 44. f6 {[%emt 0:01:34]} Kd7 {[%emt 0:03:03]} 45. f7 {[%emt 0:10:05]} Rg4+ {[%emt 0:00:21]} 46. Kf5 {[%emt 0:04:08]} Rg2 {[%emt 0:00:06]} 47. Rxh4 {[%emt 0:08:33]} Ke7 {[%emt 0:00:51]} 48. Ke5 {[%emt 0:01:10]} Rxc2 {[%emt 0:08:09]} 49. Rh8 {[%emt 0:00:55]} Re2+ {[%emt 0:02:48]} 50. Kd5 {[%emt 0:00:10]} Rd2+ {[%emt 0:01:21]} 51. Kc6 {[%emt 0:00:08]} Rd6+ {[%emt 0:03:43]} 52. Kb7 {[%emt 0:00:52]} Kxf7 {[%emt 0:00:25]} 53. Kxa7 {[%emt 0:00:15]} Ke6 {[%emt 0:00:29]} 54. Rh6+ {[%emt 0:00:51]} Kd5 {[%emt 0:00:03]} 55. Rxd6+ {[%emt 0:00:36]} Kxd6 {[%emt 0:00:05]} 56. Kxb6 {[%emt 0:00:03]} c4 {[%emt 0:00:02]} 57. a5 {[%emt 0:00:13]} c3 {[%emt 0:00:05]} 58. a6 {[%emt 0:00:04]} c2 {[%emt 0:00:02]} 59. a7 {[%emt 0:00:06]} c1=Q {[%emt 0:00:09]} 60. a8=Q {[%emt 0:00:08]} Qb2+ {[%emt 0:01:09]} 61. Ka6 {[%emt 0:00:25]} Qa3+ {[%emt 0:00:34]} 62. Kb7 {[%emt 0:00:04]} Qb4+ {[%emt 0:00:05]} 63. Kc8 {[%emt 0:01:53]} Qc5+ {[%emt 0:00:55]} 64. Kb7 {[%emt 0:00:13]} Qb5+ {[%emt 0:00:21]} 65. Ka7 {[%emt 0:00:11]} Kc7 {[%emt 0:00:23]} 0-1

[Event "HUN-chT 2017-18"]
[Site "Budapest"]
[Date "2018.05.05"]
[Round "8"]
[White "Krstulovic, Alex"]
[Black "Juhasz, Agoston"]
[Result "1-0"]
[ECO "D11"]
[WhiteElo "2290"]
[BlackElo "2182"]
[Annotator "NA"]
[PlyCount "69"]
[EventDate "2018.??.??"]
[EventType "team-tourn"]
[EventCountry "HUN"]
[SourceTitle "playchess.com"]
[Source "ChessBase"]
[SourceQuality "1"]
[TimeControl "40/5400+30:1800+30"]

1. d4 {[%emt 0:00:28]} d5 {[%emt 0:01:04]} 2. c4 {[%emt 0:00:27]} c6 {[%emt 0:00:22]} 3. Nf3 {[%emt 0:00:32]} Nf6 {[%emt 0:00:10]} 4. g3 {[%emt 0:00:11]} Bf5 {[%emt 0:01:19]} 5. Nc3 {[%emt 0:00:13]} dxc4 {[%emt 0:05:00]} 6. Bg2 {[%emt 0:11:02]} e6 {[%emt 0:08:31]} 7. Ne5 {[%emt 0:05:39]} Nbd7 {[%emt 0:16:39]} 8. Nxc4 {[%emt 0:00:29]} Be7 {[%emt 0:02:48]} 9. O-O {[%emt 0:02:19]} Rc8 {[%emt 0:06:25]} 10. e4 {[%emt 0:11:34]} Bg6 {[%emt 0:01:08]} 11. Bf4 {[%emt 0:02:44]} Nb6 {[%emt 0:04:56]} 12. Ne5 {[%emt 0:02:08]} O-O {[%emt 0:02:48]} 13. Qd3 {[%emt 0:11:53]} c5 {[%emt 0:08:48]} 14. Nxg6 {[%emt 0:01:14]} hxg6 {[%emt 0:00:08]} 15. d5 {[%emt 0:00:12]} c4 {[%emt 0:01:29]} 16. Qd2 {[%emt 0:00:32]} exd5 {[%emt 0:01:39]} 17. exd5 {[%emt 0:00:15]} Bd6 {[%emt 0:02:31]} 18. Rad1 {[%emt 0:02:04]} a6 {[%emt 0:04:18]} 19. Bh3 {[%emt 0:05:04]} Rc7 {[%emt 0:04:12]} 20. Rfe1 {[%emt 0:11:31]} Re7 {[%emt 0:01:53]} 21. Rxe7 {[%emt 0:01:48]} Qxe7 {[%emt 0:00:08]} 22. Qd4 {[%emt 0:00:23]} Qc7 {[%emt 0:04:38]} 23. Bg5 {[%emt 0:01:47]} Be5 {[%emt 0:01:21]} 24. d6 {[%emt 0:01:29]} Bxd4 {[%emt 0:03:03]} 25. dxc7 {[%emt 0:00:06]} Be5 {[%emt 0:05:52]} 26. Bf4 {[%emt 0:00:07]} Bxf4 {[%emt 0:01:28]} 27. gxf4 {[%emt 0:00:08]} Nh5 {[%emt 0:03:52]} 28. Rd8 {[%emt 0:00:26]} Nxf4 {[%emt 0:02:18]} 29. Rxf8+ {[%emt 0:00:11]} Kxf8 {[%emt 0:00:03]} 30. c8=Q+ {[%emt 0:00:12]} Nxc8 {[%emt 0:00:09]} 31. Bxc8 {[%emt 0:00:07]} b5 {[%emt 0:00:55]} 32. Bxa6 {[%emt 0:00:38]} b4 {[%emt 0:00:07]} 33. Na4 {[%emt 0:00:28]} Ne2+ {[%emt 0:01:26]} 34. Kf1 {[%emt 0:00:09]} c3 {[%emt 0:01:10]} 35. Kxe2 {[%emt 0:00:09]} 1-0

[Event "HUN-chT 2017-18"]
[Site "Budapest"]
[Date "2018.05.05"]
[Round "8"]
[White "Kokeny, Norbert Adrian"]
[Black "Juhasz, Barbara"]
[Result "1/2-1/2"]
[ECO "A05"]
[WhiteElo "2284"]
[BlackElo "2234"]
[Annotator "NA"]
[PlyCount "73"]
[EventDate "2018.??.??"]
[EventType "team-tourn"]
[EventCountry "HUN"]
[SourceTitle "playchess.com"]
[Source "ChessBase"]
[SourceQuality "1"]
[TimeControl "40/5400+30:1800+30"]

1. Nf3 {[%emt 0:00:04]} Nf6 {[%emt 0:00:41]} 2. g3 {[%emt 0:00:06]} g6 {[%emt 0:00:14]} 3. b3 {[%emt 0:00:03]} Bg7 {[%emt 0:00:39]} 4. Bb2 {[%emt 0:00:07]} O-O {[%emt 0:00:27]} 5. Bg2 {[%emt 0:00:09]} d6 {[%emt 0:00:54]} 6. d4 {[%emt 0:00:05]} c5 {[%emt 0:01:07]} 7. e3 {[%emt 0:07:58]} Ne4 {[%emt 0:14:10]} 8. O-O {[%emt 0:02:09]} Nc6 {[%emt 0:01:47]} 9. Nbd2 {[%emt 0:01:07]} d5 {[%emt 0:04:58]} 10. Ne5 {[%emt 0:08:48]} Nxe5 {[%emt 0:32:22]} 11. dxe5 {[%emt 0:04:50]} Bf5 {[%emt 0:05:15]} 12. g4 {[%emt 0:08:00]} Nxd2 {[%emt 0:00:10]} 13. Qxd2 {[%emt 0:00:12]} Bxg4 {[%emt 0:01:18]} 14. Qxd5 {[%emt 0:00:53]} Qxd5 {[%emt 0:04:01]} 15. Bxd5 {[%emt 0:00:08]} Rab8 {[%emt 0:00:06]} 16. f3 {[%emt 0:04:45]} Bf5 {[%emt 0:05:32]} 17. e4 {[%emt 0:02:09]} Bd7 {[%emt 0:07:24]} 18. a4 {[%emt 0:04:04]} Rfd8 {[%emt 0:04:36]} 19. Rfd1 {[%emt 0:01:22]} Bh6 {[%emt 0:00:40]} 20. Bc1 {[%emt 0:01:36]} Bxc1 {[%emt 0:00:47]} 21. Raxc1 {[%emt 0:00:33]} e6 {[%emt 0:07:43]} 22. Bc4 {[%emt 0:00:06]} Bc6 {[%emt 0:00:02]} 23. Kf2 {[%emt 0:01:17]} Kf8 {[%emt 0:00:30]} 24. Ke3 {[%emt 0:00:06]} Ke7 {[%emt 0:00:09]} 25. h4 {[%emt 0:00:38]} Rxd1 {[%emt 0:02:27]} 26. Rxd1 {[%emt 0:00:06]} Rd8 {[%emt 0:00:02]} 27. Rxd8 {[%emt 0:00:50]} Kxd8 {[%emt 0:00:04]} 28. h5 {[%emt 0:00:39]} g5 {[%emt 0:03:36]} 29. h6 {[%emt 0:09:25]} Ke7 {[%emt 0:00:07]} 30. f4 {[%emt 0:00:13]} gxf4+ {[%emt 0:02:12]} 31. Kxf4 {[%emt 0:00:07]} Kf8 {[%emt 0:00:37]} 32. Bd3 {[%emt 0:00:51]} Ke7 {[%emt 0:00:11]} 33. Kg5 {[%emt 0:00:09]} b6 {[%emt 0:00:22]} 34. Kf4 {[%emt 0:01:08]} Kf8 {[%emt 0:00:38]} 35. c3 {[%emt 0:02:06]} Ke7 {[%emt 0:00:26]} 36. Kg5 {[%emt 0:00:35]} a5 {[%emt 0:01:00]} 37. c4 {[%emt 0:01:52]} 1/2-1/2

[Event "HUN-chT 2017-18"]
[Site "Budapest"]
[Date "2018.05.05"]
[Round "8"]
[White "Geher, Koppany"]
[Black "Balazs, Gabor"]
[Result "1/2-1/2"]
[ECO "B48"]
[WhiteElo "2257"]
[BlackElo "2397"]
[Annotator "NA"]
[PlyCount "118"]
[EventDate "2018.??.??"]
[EventType "team-tourn"]
[EventCountry "HUN"]
[SourceTitle "playchess.com"]
[Source "ChessBase"]
[SourceQuality "1"]
[TimeControl "40/5400+30:1800+30"]

1. e4 {[%emt 0:00:08]} c5 {[%emt 0:00:37]} 2. Nf3 {[%emt 0:00:04]} e6 {[%emt 0:00:08]} 3. d4 {[%emt 0:00:05]} cxd4 {[%emt 0:00:05]} 4. Nxd4 {[%emt 0:00:04]} Nc6 {[%emt 0:00:07]} 5. Nc3 {[%emt 0:00:07]} Qc7 {[%emt 0:00:07]} 6. Be3 {[%emt 0:00:18]} a6 {[%emt 0:00:06]} 7. a3 {[%emt 0:00:12]} Nf6 {[%emt 0:00:42]} 8. f4 {[%emt 0:00:40]} d6 {[%emt 0:02:20]} 9. Qf3 {[%emt 0:00:52]} Nxd4 {[%emt 0:02:01]} 10. Bxd4 {[%emt 0:00:29]} e5 {[%emt 0:00:09]} 11. fxe5 {[%emt 0:04:17]} dxe5 {[%emt 0:00:17]} 12. Qg3 {[%emt 0:01:35]} Bd6 {[%emt 0:09:50]} 13. Qxg7 {[%emt 0:03:01]} exd4 {[%emt 0:01:41]} 14. Qxh8+ {[%emt 0:00:57]} Bf8 {[%emt 0:04:46]} 15. Qxf6 {[%emt 0:15:28]} dxc3 {[%emt 0:00:12]} 16. Qxc3 {[%emt 0:13:04]} Qxc3+ {[%emt 0:02:56]} 17. bxc3 {[%emt 0:00:58]} Bg7 {[%emt 0:00:01]} 18. O-O-O {[%emt 0:07:59]} Bxc3 {[%emt 0:00:23]} 19. Bc4 {[%emt 0:04:29]} b5 {[%emt 0:00:29]} 20. Bb3 {[%emt 0:04:26]} Be5 {[%emt 0:06:04]} 21. h3 {[%emt 0:07:15]} f6 {[%emt 0:03:39]} 22. Rd3 {[%emt 0:02:37]} Ra7 {[%emt 0:03:30]} 23. Rhd1 {[%emt 0:04:02]} Bd7 {[%emt 0:00:08]} 24. Bg8 {[%emt 0:03:21]} h6 {[%emt 0:03:23]} 25. Bh7 {[%emt 0:02:00]} Ke7 {[%emt 0:00:12]} 26. Bf5 {[%emt 0:01:37]} Be8 {[%emt 0:01:43]} 27. g4 {[%emt 0:12:35]} a5 {[%emt 0:01:04]} 28. Rd5 {[%emt 0:08:20]} b4 {[%emt 0:01:26]} 29. Rxe5+ {[%emt 0:02:05]} fxe5 {[%emt 0:00:20]} 30. axb4 {[%emt 0:00:05]} axb4 {[%emt 0:02:51]} 31. Rd5 {[%emt 0:00:16]} Rc7 {[%emt 0:24:44]} 32. Rxe5+ {[%emt 0:00:13]} Kf8 {[%emt 0:00:04]} 33. Be6 {[%emt 0:02:08]} Rc3 {[%emt 0:01:06]} 34. Bb3 {[%emt 0:00:35]} Rxh3 {[%emt 0:00:14]} 35. Rf5+ {[%emt 0:00:28]} Ke7 {[%emt 0:00:23]} 36. e5 {[%emt 0:00:31]} Re3 {[%emt 0:02:24]} 37. g5 {[%emt 0:00:35]} hxg5 {[%emt 0:07:17]} 38. Rxg5 {[%emt 0:00:01]} Bd7 {[%emt 0:01:04]} 39. Rg7+ {[%emt 0:00:27]} Kd8 {[%emt 0:00:41]} 40. Rg5 {[%emt 0:00:00]} Ke7 {[%emt 0:00:14]} 41. Kd2 {[%emt 0:05:18]} Re4 {[%emt 0:00:33]} 42. Kd3 {[%emt 0:00:31]} Rh4 {[%emt 0:03:50]} 43. Rg7+ {[%emt 0:02:47]} Ke8 {[%emt 0:01:13]} 44. e6 {[%emt 0:01:55]} Bc6 {[%emt 0:06:27]} 45. Rc7 {[%emt 0:02:43]} Bb5+ {[%emt 0:00:30]} 46. Ke3 {[%emt 0:00:48]} Kd8 {[%emt 0:01:08]} 47. Rf7 {[%emt 0:02:00]} Bc6 {[%emt 0:02:44]} 48. Rf4 {[%emt 0:02:17]} Rxf4 {[%emt 0:00:18]} 49. Kxf4 {[%emt 0:00:02]} Ke7 {[%emt 0:00:13]} 50. Ke5 {[%emt 0:00:22]} Be8 {[%emt 0:00:22]} 51. Bd5 {[%emt 0:02:47]} Ba4 {[%emt 0:00:38]} 52. Bb3 {[%emt 0:04:02]} Be8 {[%emt 0:00:05]} 53. Kf5 {[%emt 0:05:35]} Bc6 {[%emt 0:00:22]} 54. Kf4 {[%emt 0:00:35]} Be8 {[%emt 0:00:12]} 55. Ke3 {[%emt 0:00:04]} Bg6 {[%emt 0:00:21]} 56. Kd2 {[%emt 0:00:01]} Bf5 {[%emt 0:00:15]} 57. Ke3 {[%emt 0:01:09]} Bxc2 {[%emt 0:00:11]} 58. Bxc2 {[%emt 0:00:03]} Kxe6 {[%emt 0:00:04]} 59. Kd4 {[%emt 0:00:05]} Kd6 {[%emt 0:00:37]} 1/2-1/2

[Event "HUN-chT 2017-18"]
[Site "Budapest"]
[Date "2018.05.05"]
[Round "8"]
[White "Biro, David"]
[Black "Lakos, Nikoletta"]
[Result "0-1"]
[ECO "A04"]
[WhiteElo "2244"]
[BlackElo "2273"]
[Annotator "NA"]
[PlyCount "102"]
[EventDate "2018.??.??"]
[EventType "team-tourn"]
[EventCountry "HUN"]
[SourceTitle "playchess.com"]
[Source "ChessBase"]
[SourceQuality "1"]
[TimeControl "40/5400+30:1800+30"]

1. Nf3 {[%emt 0:00:09]} d6 {[%emt 0:01:57]} 2. g3 {[%emt 0:00:13]} e5 {[%emt 0:02:40]} 3. d3 {[%emt 0:00:36]} c6 {[%emt 0:03:47]} 4. Bg2 {[%emt 0:00:52]} h6 {[%emt 0:01:46]} 5. O-O {[%emt 0:00:06]} Be6 {[%emt 0:01:07]} 6. b3 {[%emt 0:05:17]} Qd7 {[%emt 0:04:51]} 7. Nbd2 {[%emt 0:02:23]} Nf6 {[%emt 0:04:32]} 8. e4 {[%emt 0:00:11]} Bg4 {[%emt 0:17:59]} 9. Nc4 {[%emt 0:01:24]} Be7 {[%emt 0:18:42]} 10. Ne3 {[%emt 0:11:29]} Be6 {[%emt 0:00:31]} 11. Bb2 {[%emt 0:04:41]} Ng4 {[%emt 0:18:05]} 12. Nf5 {[%emt 0:23:08]} Bxf5 {[%emt 0:02:43]} 13. exf5 {[%emt 0:00:02]} Qxf5 {[%emt 0:05:19]} 14. h3 {[%emt 0:00:49]} Nf6 {[%emt 0:00:21]} 15. Nd2 {[%emt 0:13:51]} O-O {[%emt 0:01:02]} 16. f4 {[%emt 0:02:32]} exf4 {[%emt 0:02:12]} 17. Rxf4 {[%emt 0:00:18]} Qg6 {[%emt 0:02:10]} 18. Kh2 {[%emt 0:02:38]} Nbd7 {[%emt 0:00:20]} 19. Nf3 {[%emt 0:01:06]} Qh5 {[%emt 0:03:13]} 20. g4 {[%emt 0:07:00]} Qa5 {[%emt 0:01:10]} 21. Rf5 {[%emt 0:03:19]} Qc7 {[%emt 0:00:39]} 22. Qe1 {[%emt 0:02:26]} d5+ {[%emt 0:00:51]} 23. Kh1 {[%emt 0:00:21]} Rfe8 24. Qd2 {[%emt 0:02:11]} Nh7 {[%emt 0:03:48]} 25. Rf1 {[%emt 0:03:36]} f6 {[%emt 0:01:12]} 26. Nh4 {[%emt 0:05:04]} Qg3 {[%emt 0:00:10]} 27. Qf2 {[%emt 0:04:42]} Qxf2 {[%emt 0:00:25]} 28. R5xf2 {[%emt 0:00:22]} Bc5 {[%emt 0:00:18]} 29. d4 {[%emt 0:00:20]} Bf8 {[%emt 0:00:48]} 30. c4 {[%emt 0:00:16]} dxc4 {[%emt 0:00:26]} 31. bxc4 {[%emt 0:00:01]} Nb6 {[%emt 0:00:24]} 32. Rc2 {[%emt 0:02:32]} Ng5 {[%emt 0:00:52]} 33. d5 {[%emt 0:01:31]} Ne4 {[%emt 0:00:34]} 34. Rd1 {[%emt 0:00:57]} Nxc4 {[%emt 0:01:39]} 35. Nf5 cxd5 {[%emt 0:00:28]} 36. Rxd5 {[%emt 0:00:46]} Nxb2 {[%emt 0:00:33]} 37. Rxb2 {[%emt 0:00:07]} Nc5 {[%emt 0:00:23]} 38. Nd6 {[%emt 0:00:49]} Bxd6 {[%emt 0:00:45]} 39. Rxd6 {[%emt 0:00:02]} Rab8 {[%emt 0:00:38]} 40. Bd5+ {[%emt 0:00:00]} Kh8 {[%emt 0:00:08]} 41. Rc2 {[%emt 0:01:40]} b6 {[%emt 0:00:19]} 42. Bf7 {[%emt 0:01:24]} Red8 {[%emt 0:11:36]} 43. Rc6 {[%emt 0:01:26]} Rd1+ {[%emt 0:13:15]} 44. Kg2 {[%emt 0:02:06]} Rbd8 {[%emt 0:01:33]} 45. Bg6 {[%emt 0:02:34]} Nd3 {[%emt 0:01:23]} 46. Bxd3 {[%emt 0:05:25]} R8xd3 {[%emt 0:00:03]} 47. Re2 {[%emt 0:00:38]} R1d2 {[%emt 0:02:01]} 48. Rc2 {[%emt 0:01:02]} Rxe2+ {[%emt 0:00:45]} 49. Rxe2 {[%emt 0:00:01]} Ra3 {[%emt 0:00:34]} 50. h4 {[%emt 0:00:25]} h5 {[%emt 0:00:23]} 51. gxh5 {[%emt 0:00:52]} Kh7 {[%emt 0:00:01]} 0-1

[Event "HUN-chT 2017-18"]
[Site "Budapest"]
[Date "2018.05.05"]
[Round "8"]
[White "Borhy, Marcell"]
[Black "Reskone dr., Timko Melinda"]
[Result "1-0"]
[ECO "A50"]
[WhiteElo "2226"]
[BlackElo "2024"]
[Annotator "NA"]
[PlyCount "63"]
[EventDate "2018.??.??"]
[EventType "team-tourn"]
[EventCountry "HUN"]
[SourceTitle "playchess.com"]
[Source "ChessBase"]
[SourceQuality "1"]
[TimeControl "40/5400+30:1800+30"]

1. d4 {[%emt 0:00:04]} Nf6 {[%emt 0:00:52]} 2. c4 {[%emt 0:00:10]} c6 {[%emt 0:02:08]} 3. Nc3 {[%emt 0:01:52]} d5 {[%emt 0:01:20]} 4. cxd5 {[%emt 0:01:18]} cxd5 {[%emt 0:00:24]} 5. Bf4 {[%emt 0:00:13]} e6 {[%emt 0:11:27]} 6. e3 {[%emt 0:00:22]} Bd7 {[%emt 0:08:43]} 7. Qb3 {[%emt 0:05:18]} Nc6 {[%emt 0:10:58]} 8. Qxb7 {[%emt 0:07:29]} Bb4 {[%emt 0:18:11]} 9. Bc7 {[%emt 0:10:15]} Qc8 {[%emt 0:17:12]} 10. Ba6 {[%emt 0:00:09]} O-O {[%emt 0:00:50]} 11. Rc1 {[%emt 0:08:21]} Qe8 {[%emt 0:06:42]} 12. Nge2 {[%emt 0:05:14]} Qe7 {[%emt 0:04:15]} 13. a3 {[%emt 0:03:05]} Ba5 {[%emt 0:04:09]} 14. Bb5 {[%emt 0:04:43]} Rab8 {[%emt 0:02:35]} 15. Bxb8 {[%emt 0:00:40]} Rxb8 {[%emt 0:00:10]} 16. Bxc6 {[%emt 0:02:59]} Rxb7 {[%emt 0:00:10]} 17. Bxb7 {[%emt 0:00:01]} Bb5 {[%emt 0:03:26]} 18. b4 {[%emt 0:02:23]} Bxb4 {[%emt 0:01:13]} 19. axb4 {[%emt 0:00:08]} Bxe2 {[%emt 0:00:13]} 20. Nxd5 {[%emt 0:06:25]} Qxb7 {[%emt 0:00:24]} 21. Rc8+ {[%emt 0:00:13]} Qxc8 {[%emt 0:00:52]} 22. Ne7+ {[%emt 0:00:09]} Kf8 {[%emt 0:00:24]} 23. Nxc8 {[%emt 0:00:02]} Ba6 {[%emt 0:00:11]} 24. Nxa7 {[%emt 0:00:16]} Ke7 {[%emt 0:01:02]} 25. b5 {[%emt 0:01:26]} Bb7 {[%emt 0:00:09]} 26. O-O {[%emt 0:00:33]} Nd7 {[%emt 0:01:17]} 27. Rc1 {[%emt 0:00:13]} Kd6 {[%emt 0:00:13]} 28. Nc8+ {[%emt 0:00:42]} Kd5 {[%emt 0:01:57]} 29. e4+ {[%emt 0:00:18]} Kxd4 {[%emt 0:00:37]} 30. Rd1+ {[%emt 0:00:01]} Ke5 {[%emt 0:00:57]} 31. Rxd7 {[%emt 0:00:09]} Bxc8 {[%emt 0:00:10]} 32. Rc7 {[%emt 0:00:08]} 1-0